[Event "36th Indian-ch U13 Open 2023"]
[Site "Secunderabad"]
[Date "2023.12.10"]
[Round "11.2"]
[White "Reyan"]
[Black "Sharnarthi Viresh"]
[Result "0-1"]
[ECO "B23"]
[WhiteElo "1842"]
[BlackElo "1850"]
[Annotator "NA RC"]
[PlyCount "156"]
[EventDate "2023.12.04"]
[EventType "swiss"]
[EventCountry "IND"]
[SourceTitle "playchess.com"]
[Source "ChessBase"]
[SourceQuality "1"]
[TimeControl "5400+30"]

1. e4 {[%emt 0:00:02]} c5 {[%emt 0:00:04]} 2. Nc3 {[%emt 0:00:07]} Nc6 {[%emt 0:00:05]} 3. Bb5 {[%emt 0:00:06]} Nd4 {[%emt 0:00:00]} 4. Nf3 {[%emt 0:00:00]} a6 {[%emt 0:00:00]} 5. Bd3 {[%emt 0:00:00]} g6 {[%emt 0:00:00]} 6. O-O {[%emt 0:00:02]} Bg7 {[%emt 0:00:00]} 7. Re1 {[%emt 0:00:07]} d6 {[%emt 0:06:58]} 8. Nxd4 {[%emt 0:00:37]} cxd4 {[%emt 0:00:02]} 9. Ne2 {[%emt 0:00:09]} Bg4 {[%emt 0:04:15]} 10. f3 {[%emt 0:07:48]} Bd7 {[%emt 0:00:13]} 11. c3 {[%emt 1:27:02]} Rc8 {[%emt 0:07:44]} 12. Kh1 {[%emt 0:00:00]} Qb6 {[%emt 0:00:48]} 13. cxd4 {[%emt 0:00:00]} Bxd4 {[%emt 0:00:02]} 14. Nxd4 {[%emt 0:00:00]} Qxd4 {[%emt 0:00:05]} 15. Qe2 {[%emt 0:00:00]} Nf6 {[%emt 0:14:39]} 16. Rb1 {[%emt 0:00:00]} Nh5 {[%emt 0:11:19]} 17. g3 {[%emt 0:00:00]} Rc5 {[%emt 0:00:46]} 18. Qe3 {[%emt 0:00:00]} Qxe3 {[%emt 0:00:13]} 19. dxe3 {[%emt 0:00:00]} O-O {[%emt 0:00:14]} 20. Bd2 {[%emt 0:00:00]} Rfc8 {[%emt 0:07:18]} 21. b4 {[%emt 0:00:00]} R5c7 {[%emt 0:00:21]} 22. Rec1 {[%emt 0:00:00]} Bb5 {[%emt 0:00:32]} 23. Bxb5 {[%emt 0:00:00]} axb5 {[%emt 0:01:14]} 24. Rxc7 {[%emt 0:00:00]} Rxc7 {[%emt 0:00:02]} 25. Rc1 {[%emt 0:00:00]} Rc6 {[%emt 0:02:07]} 26. Rc3 {[%emt 0:00:00]} Nf6 {[%emt 0:01:13]} 27. Kg2 {[%emt 0:00:00]} Nd7 {[%emt 0:03:21]} 28. Kf1 {[%emt 0:00:00]} Nb6 {[%emt 0:04:06]} 29. Rxc6 {[%emt 0:00:00]} bxc6 {[%emt 0:00:01]} 30. Ke2 {[%emt 0:00:00]} f6 {[%emt 0:06:18]} 31. Kd3 {[%emt 0:00:00]} Kf7 {[%emt 0:00:25]} 32. Bc3 {[%emt 0:01:38]} e5 {[%emt 0:02:33]} 33. Be1 {[%emt 0:00:53]} Ke6 {[%emt 0:02:31]} 34. Bd2 {[%emt 0:00:48]} Kd7 {[%emt 0:10:18]} 35. Be1 {[%emt 0:00:36]} c5 {[%emt 0:03:16]} 36. Bd2 {[%emt 0:01:20]} Kc6 {[%emt 0:00:12]} 37. Be1 {[%emt 0:00:36]} c4+ {[%emt 0:05:47]} 38. Kc2 {[%emt 0:00:38]} Kd7 {[%emt 0:00:17]} 39. Bd2 {[%emt 0:02:57]} f5 {[%emt 0:02:15]} 40. exf5 {[%emt 0:02:23]} gxf5 {[%emt 0:00:02]} 41. a3 {[%emt 0:01:44]} Ke6 {[%emt 0:03:34]} 42. Bc3 {[%emt 0:00:22]} Kf6 {[%emt 0:03:13]} 43. Bd2 {[%emt 0:00:36]} Kg6 {[%emt 0:00:31]} 44. Bc3 {[%emt 0:00:19]} Nd5 {[%emt 0:01:38]} 45. Bd2 {[%emt 0:00:14]} Kf6 {[%emt 0:00:32]} 46. Bc1 {[%emt 0:00:43]} Ke6 {[%emt 0:00:05]} 47. Bd2 {[%emt 0:00:12]} Kd7 {[%emt 0:00:25]} 48. Bc1 {[%emt 0:00:26]} Kc6 {[%emt 0:00:39]} 49. Bd2 {[%emt 0:00:10]} Nf6 {[%emt 0:00:43]} 50. h3 {[%emt 0:00:32]} h5 {[%emt 0:00:51]} 51. Bc3 {[%emt 0:00:40]} Kd7 {[%emt 0:00:53]} 52. Be1 {[%emt 0:00:29]} Ke6 {[%emt 0:00:43]} 53. Bc3 {[%emt 0:00:04]} Nd5 {[%emt 0:00:17]} 54. Bd2 {[%emt 0:00:07]} e4 {[%emt 0:00:49]} 55. f4 {[%emt 0:00:20]} h4 {[%emt 0:00:01]} 56. gxh4 {[%emt 0:00:12]} Kf7 {[%emt 0:00:11]} 57. Kd1 {[%emt 0:00:35]} Kg6 {[%emt 0:00:07]} 58. Ke2 {[%emt 0:00:16]} Kh5 {[%emt 0:00:13]} 59. Be1 {[%emt 0:00:01]} Kg6 {[%emt 0:02:10]} 60. Bf2 {[%emt 0:00:42]} Nb6 {[%emt 0:00:39]} 61. Kd2 {[%emt 0:00:13]} Nd5 {[%emt 0:00:23]} 62. Kc2 {[%emt 0:00:26]} Nb6 {[%emt 0:00:32]} 63. Kc3 {[%emt 0:00:11]} Kh5 {[%emt 0:00:17]} 64. Kc2 {[%emt 0:00:18]} Na4 {[%emt 0:00:16]} 65. Be1 {[%emt 0:00:22]} d5 {[%emt 0:00:29]} 66. Bf2 {[%emt 0:00:21]} d4 {[%emt 0:00:08]} 67. exd4 {[%emt 0:01:00]} Nb6 {[%emt 0:00:01]} 68. Kd2 {[%emt 0:00:35]} Nd5 {[%emt 0:00:01]} 69. Bg3 {[%emt 0:00:18]} Kg6 {[%emt 0:00:01]} 70. Bh2 {[%emt 0:00:21]} Kh6 {[%emt 0:00:02]} 71. Kd1 {[%emt 0:01:58]} Kg6 {[%emt 0:01:08]} 72. Kd2 {[%emt 0:00:08]} Kf7 {[%emt 0:00:04]} 73. Bg3 {[%emt 0:00:14]} Nf6 {[%emt 0:00:13]} 74. Bh2 {[%emt 0:00:45]} Nh5 {[%emt 0:00:41]} 75. Kc3 {[%emt 0:00:49]} e3 {[%emt 0:01:26]} 76. Bg1 {[%emt 0:01:02]} Nxf4 {[%emt 0:00:36]} 77. Bxe3 {[%emt 0:03:26]} Nd5+ {[%emt 0:00:02]} 78. Kd2 {[%emt 0:00:00]} c3+ {[%emt 0:00:01]} 0-1

[Event "36th Indian-ch U13 Open 2023"]
[Site "Secunderabad"]
[Date "2023.12.10"]
[Round "11.3"]
[White "Vandan Alankar Sawai"]
[Black "Vivaan Vijay Saraogi"]
[Result "1-0"]
[ECO "B94"]
[WhiteElo "1619"]
[BlackElo "1982"]
[Annotator "RC"]
[PlyCount "71"]
[EventDate "2023.12.04"]
[EventType "swiss"]
[EventCountry "IND"]
[SourceTitle "playchess.com"]
[Source "ChessBase"]
[SourceQuality "1"]
[TimeControl "5400+30"]

1. e4 {[%emt 0:00:14]} c5 {[%emt 0:00:12]} 2. Nf3 {[%emt 0:00:17]} d6 {[%emt 0:00:10]} 3. d4 {[%emt 0:00:13]} cxd4 {[%emt 0:00:05]} 4. Nxd4 {[%emt 0:00:08]} Nf6 {[%emt 0:00:12]} 5. Nc3 {[%emt 0:00:09]} a6 {[%emt 0:00:13]} 6. Bg5 {[%emt 0:00:27]} Nbd7 {[%emt 0:00:15]} 7. Qe2 {[%emt 0:00:57]} Qc7 {[%emt 0:00:31]} 8. O-O-O {[%emt 0:02:51]} b5 {[%emt 0:00:23]} 9. a3 {[%emt 0:01:48]} Bb7 {[%emt 0:00:39]} 10. f4 {[%emt 0:01:19]} Rc8 {[%emt 0:05:23]} 11. Bxf6 {[%emt 0:08:11]} gxf6 {[%emt 0:01:59]} 12. Nd5 {[%emt 0:00:09]} Qa5 {[%emt 0:21:22]} 13. g3 {[%emt 0:07:06]} e5 {[%emt 0:16:51]} 14. Nf5 {[%emt 0:02:13]} b4 {[%emt 0:01:33]} 15. Nxb4 {[%emt 0:05:04]} d5 {[%emt 0:01:12]} 16. Nxd5 {[%emt 0:01:22]} Bxa3 {[%emt 0:00:15]} 17. Qd3 {[%emt 0:07:07]} Bxb2+ {[%emt 0:29:22]} 18. Kxb2 {[%emt 0:00:11]} Bxd5 {[%emt 0:00:02]} 19. exd5 {[%emt 0:03:59]} Rb8+ {[%emt 0:05:49]} 20. Kc1 {[%emt 0:00:33]} Nc5 {[%emt 0:00:15]} 21. Qe3 {[%emt 0:04:23]} O-O {[%emt 0:10:45]} 22. Ne7+ {[%emt 0:00:30]} Kh8 {[%emt 0:00:08]} 23. Nc6 {[%emt 0:00:10]} Qb6 {[%emt 0:01:39]} 24. Nxb8 {[%emt 0:01:50]} Rxb8 {[%emt 0:00:02]} 25. d6 {[%emt 0:07:19]} exf4 {[%emt 0:01:12]} 26. Qd4 {[%emt 0:02:30]} Qa5 {[%emt 0:01:03]} 27. gxf4 {[%emt 0:01:21]} Qa3+ {[%emt 0:01:17]} 28. Kd2 {[%emt 0:00:08]} Qa5+ {[%emt 0:00:17]} 29. Ke2 {[%emt 0:00:33]} Re8+ {[%emt 0:00:07]} 30. Kf3 {[%emt 0:00:09]} Nd7 {[%emt 0:01:45]} 31. Bh3 {[%emt 0:00:27]} Ne5+ {[%emt 0:00:30]} 32. fxe5 {[%emt 0:00:08]} fxe5 {[%emt 0:00:02]} 33. d7 {[%emt 0:01:04]} Rd8 {[%emt 0:00:25]} 34. Qd6 {[%emt 0:00:23]} e4+ {[%emt 0:00:20]} 35. Kxe4 {[%emt 0:00:24]} Qa4+ {[%emt 0:00:26]} 36. Qd4+ {[%emt 0:00:07]} 1-0

[Event "36th Indian-ch U13 Open 2023"]
[Site "Secunderabad"]
[Date "2023.12.10"]
[Round "11.4"]
[White "Adharsh K"]
[Black "Sushanth Vaman Shetty"]
[Result "0-1"]
[ECO "C11"]
[WhiteElo "1831"]
[BlackElo "1620"]
[Annotator "NA RC"]
[PlyCount "156"]
[EventDate "2023.12.04"]
[EventType "swiss"]
[EventCountry "IND"]
[SourceTitle "playchess.com"]
[Source "ChessBase"]
[SourceQuality "1"]
[TimeControl "5400+30"]

1. e4 {[%emt 0:01:13]} e6 {[%emt 0:00:23]} 2. d4 {[%emt 0:00:05]} d5 {[%emt 1:31:07]} 3. Nc3 {[%emt 0:00:12]} Nf6 {[%emt 0:00:00]} 4. e5 {[%emt 0:00:05]} Nfd7 {[%emt 0:00:00]} 5. f4 {[%emt 0:00:17]} c5 {[%emt 0:00:00]} 6. Nf3 {[%emt 0:00:06]} Nc6 {[%emt 0:00:00]} 7. Be3 {[%emt 0:00:06]} a6 {[%emt 0:00:00]} 8. a3 {[%emt 0:00:40]} b5 {[%emt 0:00:00]} 9. Qd2 {[%emt 0:08:04]} Qb6 {[%emt 0:00:00]} 10. dxc5 {[%emt 0:22:49]} Bxc5 {[%emt 0:00:00]} 11. Bxc5 {[%emt 0:00:04]} Nxc5 {[%emt 0:00:00]} 12. Nd4 {[%emt 0:02:44]} Bb7 {[%emt 0:00:00]} 13. Nxc6 {[%emt 0:00:31]} Qxc6 {[%emt 0:00:00]} 14. Qd4 {[%emt 0:00:19]} Rc8 {[%emt 0:00:00]} 15. Bd3 {[%emt 0:13:01]} Qb6 {[%emt 0:00:00]} 16. O-O {[%emt 0:01:15]} Na4 {[%emt 0:00:00]} 17. Qxb6 {[%emt 0:01:08]} Nxb6 {[%emt 0:00:00]} 18. Ne2 {[%emt 0:00:22]} Na4 {[%emt 0:00:00]} 19. Rab1 {[%emt 0:04:40]} g6 {[%emt 0:00:00]} 20. Nd4 {[%emt 0:00:13]} Ke7 {[%emt 0:00:00]} 21. Kf2 {[%emt 0:00:19]} h5 {[%emt 0:00:00]} 22. g3 {[%emt 0:00:21]} Bc6 {[%emt 0:00:00]} 23. Ke3 {[%emt 0:00:11]} Bd7 {[%emt 0:00:00]} 24. h3 {[%emt 0:08:43]} Nc5 {[%emt 0:00:00]} 25. Rf3 {[%emt 0:07:20]} Rcg8 {[%emt 0:00:00]} 26. Rbf1 {[%emt 0:02:29]} f6 {[%emt 0:00:00]} 27. b4 {[%emt 0:05:24]} Na4 {[%emt 0:00:00]} 28. Nb3 {[%emt 0:09:30]} f5 {[%emt 0:00:00]} 29. Kd4 {[%emt 0:00:15]} Rc8 {[%emt 0:00:00]} 30. Rg1 {[%emt 0:00:19]} Kf7 {[%emt 0:00:00]} 31. g4 {[%emt 0:01:12]} hxg4 {[%emt 0:00:00]} 32. hxg4 {[%emt 0:00:05]} Rh4 {[%emt 0:00:00]} 33. gxf5 {[%emt 0:01:44]} gxf5 {[%emt 0:00:00]} 34. Rfg3 {[%emt 0:00:08]} Rxf4+ {[%emt 0:00:00]} 35. Ke3 {[%emt 0:00:04]} Rg4 {[%emt 0:00:00]} 36. Rxg4 {[%emt 0:00:04]} fxg4 {[%emt 0:00:00]} 37. Rxg4 {[%emt 0:00:11]} Rh8 {[%emt 0:00:00]} 38. Kd4 {[%emt 0:00:10]} Bc8 {[%emt 0:00:00]} 39. Rf4+ {[%emt 0:01:00]} Ke7 {[%emt 0:00:00]} 40. Nc5 {[%emt 0:05:15]} Nb6 {[%emt 0:00:00]} 41. Bg6 {[%emt 0:00:24]} Nc4 {[%emt 0:00:00]} 42. Rf7+ {[%emt 0:00:36]} Kd8 {[%emt 0:00:00]} 43. Nd3 {[%emt 0:04:31]} Rh4+ {[%emt 0:00:00]} 44. Kc5 {[%emt 0:00:07]} Bd7 {[%emt 0:00:00]} 45. Rf8+ {[%emt 0:02:15]} Kc7 {[%emt 0:00:00]} 46. Rf4 {[%emt 0:02:17]} Rxf4 {[%emt 0:00:00]} 47. Nxf4 {[%emt 0:00:04]} Nxe5 {[%emt 0:00:00]} 48. Bh7 {[%emt 0:00:17]} Bc8 {[%emt 0:00:00]} 49. Kd4 {[%emt 0:00:32]} Nc4 {[%emt 0:00:00]} 50. Kc5 {[%emt 0:00:30]} Ne5 {[%emt 0:00:00]} 51. Kd4 {[%emt 0:00:26]} Kd6 {[%emt 0:00:00]} 52. Bd3 {[%emt 0:00:41]} Nc6+ {[%emt 0:00:00]} 53. Kc3 {[%emt 0:00:20]} e5 {[%emt 0:00:00]} 54. Ng6 {[%emt 0:00:22]} e4 {[%emt 0:00:00]} 55. Be2 {[%emt 0:00:04]} d4+ {[%emt 0:00:00]} 56. Kd2 {[%emt 0:02:26]} e3+ {[%emt 0:00:00]} 57. Kc1 {[%emt 0:00:00]} Bf5 {[%emt 0:00:00]} 58. Nf4 {[%emt 0:00:00]} Ne5 {[%emt 0:00:00]} 59. a4 {[%emt 0:00:00]} Nc4 {[%emt 0:00:00]} 60. axb5 {[%emt 0:02:00]} axb5 {[%emt 0:00:00]} 61. c3 {[%emt 0:00:00]} Ke5 {[%emt 0:00:00]} 62. Bxc4 {[%emt 0:00:18]} bxc4 {[%emt 0:00:00]} 63. Ng2 {[%emt 0:00:05]} Be4 {[%emt 0:00:00]} 64. cxd4+ {[%emt 0:00:09]} Kxd4 {[%emt 0:00:00]} 65. Nf4 {[%emt 0:00:46]} Bf3 {[%emt 0:00:00]} 66. b5 {[%emt 0:00:23]} e2 {[%emt 0:00:00]} 67. Kd2 {[%emt 0:00:19]} c3+ {[%emt 0:00:00]} 68. Ke1 {[%emt 0:00:03]} Ke3 {[%emt 0:00:00]} 69. b6 {[%emt 0:00:52]} Kxf4 {[%emt 0:00:00]} 70. b7 {[%emt 0:02:05]} Bxb7 {[%emt 0:00:00]} 71. Kxe2 {[%emt 0:00:00]} Ke4 {[%emt 0:00:00]} 72. Kd1 {[%emt 0:00:00]} Kd3 {[%emt 0:00:00]} 73. Kc1 {[%emt 0:00:00]} c2 {[%emt 0:00:00]} 74. Kb2 {[%emt 0:00:00]} Kd2 {[%emt 0:00:00]} 75. Ka2 {[%emt 0:00:00]} c1=Q {[%emt 0:00:00]} 76. Kb3 {[%emt 0:00:00]} Qc3+ {[%emt 0:00:00]} 77. Ka2 {[%emt 0:00:00]} Bd5+ {[%emt 0:00:00]} 78. Kb1 {[%emt 0:00:00]} Qc1# {[%emt 0:00:00]} 0-1

[Event "36th Indian-ch U13 Open 2023"]
[Site "Secunderabad"]
[Date "2023.12.10"]
[Round "11.5"]
[White "Darshan, V P S"]
[Black "Mrinmoy Rajkhowa"]
[Result "0-1"]
[ECO "B90"]
[WhiteElo "1670"]
[BlackElo "1840"]
[Annotator "NA RC"]
[PlyCount "64"]
[EventDate "2023.12.04"]
[EventType "swiss"]
[EventCountry "IND"]
[SourceTitle "playchess.com"]
[Source "ChessBase"]
[SourceQuality "1"]
[TimeControl "5400+30"]

1. e4 {[%emt 0:00:06]} c5 {[%emt 0:00:07]} 2. Nf3 {[%emt 0:00:29]} d6 {[%emt 0:00:05]} 3. d4 {[%emt 0:00:09]} cxd4 {[%emt 0:00:05]} 4. Nxd4 {[%emt 0:00:03]} Nf6 {[%emt 0:00:05]} 5. Nc3 {[%emt 0:00:05]} a6 {[%emt 0:00:03]} 6. f3 {[%emt 0:00:04]} e5 {[%emt 0:00:04]} 7. Nb3 {[%emt 0:00:06]} Be6 {[%emt 0:00:04]} 8. Be3 {[%emt 0:00:05]} h5 {[%emt 0:02:09]} 9. Nd5 {[%emt 0:00:40]} Bxd5 {[%emt 0:02:07]} 10. exd5 {[%emt 0:00:09]} g6 {[%emt 0:00:31]} 11. Qd2 {[%emt 0:00:47]} b6 {[%emt 0:05:24]} 12. O-O-O {[%emt 0:06:53]} Nbd7 {[%emt 0:01:54]} 13. Be2 {[%emt 0:06:01]} Bg7 {[%emt 0:03:35]} 14. Rhe1 {[%emt 0:03:46]} Qc7 {[%emt 0:02:41]} 15. Kb1 {[%emt 0:04:30]} O-O {[%emt 0:05:29]} 16. h3 {[%emt 0:04:54]} b5 {[%emt 0:10:26]} 17. g4 {[%emt 0:09:49]} Nb6 {[%emt 0:04:33]} 18. Bxb6 {[%emt 0:08:10]} Qxb6 {[%emt 0:00:02]} 19. f4 {[%emt 0:02:05]} Ne4 {[%emt 0:11:43]} 20. Qb4 {[%emt 0:00:51]} Nf2 {[%emt 0:03:43]} 21. Rd2 {[%emt 0:10:42]} a5 {[%emt 0:10:41]} 22. Qxb5 {[%emt 0:14:51]} Qe3 {[%emt 0:04:51]} 23. a4 {[%emt 0:02:54]} exf4 {[%emt 0:03:38]} 24. Rc1 {[%emt 0:02:19]} Rfb8 {[%emt 0:06:06]} 25. Qc6 {[%emt 0:00:28]} Ne4 {[%emt 0:02:56]} 26. Rd3 {[%emt 0:06:40]} Qxe2 {[%emt 0:00:35]} 27. gxh5 {[%emt 0:00:14]} Nc5 {[%emt 0:06:06]} 28. Nxc5 {[%emt 0:00:36]} Rxb2+ {[%emt 0:00:11]} 29. Ka1 {[%emt 0:00:04]} Rxc2+ {[%emt 0:00:20]} 30. Kb1 {[%emt 0:00:04]} Rb2+ {[%emt 0:00:07]} 31. Ka1 {[%emt 0:00:03]} Ra2+ {[%emt 0:00:04]} 32. Kb1 {[%emt 0:00:05]} Qb2# {[%emt 0:00:04]} 0-1

[Event "36th Indian-ch U13 Open 2023"]
[Site "Secunderabad"]
[Date "2023.12.10"]
[Round "11.6"]
[White "Challa Saharsha"]
[Black "Siddhanth Poonja"]
[Result "0-1"]
[ECO "D00"]
[WhiteElo "1674"]
[BlackElo "1806"]
[Annotator "NA RC"]
[PlyCount "178"]
[EventDate "2023.12.04"]
[EventType "swiss"]
[EventCountry "IND"]
[SourceTitle "playchess.com"]
[Source "ChessBase"]
[SourceQuality "1"]
[TimeControl "5400+30"]

1. d4 {[%emt 0:00:06]} Nf6 {[%emt 0:00:19]} 2. Nc3 {[%emt 0:00:05]} d5 {[%emt 0:00:10]} 3. Bf4 {[%emt 0:00:05]} g6 {[%emt 0:00:08]} 4. e3 {[%emt 0:00:05]} Bg7 {[%emt 0:00:05]} 5. h4 {[%emt 0:00:04]} h5 {[%emt 0:00:29]} 6. Nf3 {[%emt 0:00:12]} O-O {[%emt 0:00:09]} 7. Qd2 {[%emt 0:00:03]} c5 {[%emt 0:00:39]} 8. Ne5 {[%emt 0:00:04]} cxd4 {[%emt 0:05:07]} 9. exd4 {[%emt 0:00:06]} Nc6 {[%emt 0:00:07]} 10. f3 {[%emt 0:00:21]} Bf5 {[%emt 0:02:52]} 11. Bb5 {[%emt 0:00:25]} Rc8 {[%emt 0:01:47]} 12. Bxc6 {[%emt 0:00:11]} bxc6 {[%emt 0:00:07]} 13. Na4 {[%emt 0:00:05]} Nh7 {[%emt 0:00:11]} 14. O-O-O {[%emt 0:07:22]} f6 {[%emt 0:00:04]} 15. Nd3 {[%emt 0:00:04]} e5 {[%emt 0:00:06]} 16. Be3 {[%emt 0:03:30]} Re8 {[%emt 0:09:21]} 17. Rdg1 {[%emt 0:07:49]} Qe7 {[%emt 0:11:33]} 18. Nac5 {[%emt 0:25:46]} e4 {[%emt 0:17:54]} 19. fxe4 {[%emt 0:03:13]} dxe4 {[%emt 0:01:24]} 20. Nf4 {[%emt 0:00:53]} Qf7 {[%emt 0:00:17]} 21. Kb1 {[%emt 0:00:18]} Nf8 {[%emt 0:01:14]} 22. Qf2 {[%emt 0:03:34]} Bg4 {[%emt 0:02:54]} 23. Qe1 {[%emt 0:12:26]} Rb8 {[%emt 0:04:17]} 24. Nh3 {[%emt 0:06:08]} Nd7 {[%emt 0:03:09]} 25. Nb3 {[%emt 0:02:38]} Rb5 {[%emt 0:04:30]} 26. Nf2 {[%emt 0:00:43]} a5 {[%emt 0:01:17]} 27. Nxg4 {[%emt 0:02:46]} hxg4 {[%emt 0:00:28]} 28. Nxa5 {[%emt 0:00:52]} Ra8 {[%emt 0:00:57]} 29. Nb3 {[%emt 0:00:08]} Nb6 {[%emt 0:00:16]} 30. Bc1 {[%emt 0:02:06]} f5 {[%emt 0:01:03]} 31. Rf1 {[%emt 0:01:12]} c5 {[%emt 0:01:06]} 32. dxc5 {[%emt 0:01:53]} Nc4 {[%emt 0:00:23]} 33. h5 {[%emt 0:00:50]} Qf6 {[%emt 0:32:37]} 34. Qe2 {[%emt 0:07:30]} Rb4 {[%emt 0:00:00]} 35. h6 {[%emt 0:03:03]} Qa6 {[%emt 0:00:00]} 36. a3 {[%emt 0:01:09]} Nxa3+ {[%emt 0:00:00]} 37. bxa3 {[%emt 0:00:56]} Qxe2 {[%emt 0:00:00]} 38. axb4 {[%emt 0:06:36]} Qa6 {[%emt 0:00:00]} 39. Na5 {[%emt 0:00:04]} Bc3 {[%emt 0:00:00]} 40. Bb2 {[%emt 0:01:46]} Bxb2 {[%emt 0:00:00]} 41. Kxb2 {[%emt 0:00:05]} Kh7 {[%emt 0:00:00]} 42. Rd1 {[%emt 0:00:53]} Qb5 {[%emt 0:00:00]} 43. c6 {[%emt 0:02:54]} Qxb4+ {[%emt 0:00:00]} 44. Nb3 {[%emt 0:01:31]} Ra7 {[%emt 0:00:00]} 45. Rd7+ {[%emt 0:00:00]} Rxd7 {[%emt 0:00:00]} 46. cxd7 {[%emt 0:00:00]} Qd6 {[%emt 0:00:00]} 47. Nc5 {[%emt 0:00:02]} Qd4+ {[%emt 0:00:00]} 48. Kb1 {[%emt 0:00:34]} Kh8 {[%emt 0:00:00]} 49. Ka2 {[%emt 0:01:20]} e3 {[%emt 0:00:00]} 50. Kb3 {[%emt 0:00:31]} f4 {[%emt 0:00:00]} 51. c3 {[%emt 0:00:32]} Qd2 {[%emt 0:00:00]} 52. Ra1 {[%emt 0:00:22]} e2 {[%emt 0:00:00]} 53. Ra8+ {[%emt 0:00:09]} Kh7 {[%emt 0:00:00]} 54. Re8 {[%emt 0:00:53]} f3 {[%emt 0:00:00]} 55. gxf3 {[%emt 0:00:05]} gxf3 {[%emt 0:00:00]} 56. Ne6 {[%emt 0:00:59]} Qxd7 {[%emt 0:00:00]} 57. Nf8+ {[%emt 0:00:17]} Kxh6 {[%emt 0:00:00]} 58. Nxd7 {[%emt 0:00:07]} f2 {[%emt 0:00:00]} 59. Rxe2 {[%emt 0:00:48]} f1=Q {[%emt 0:00:00]} 60. Rd2 {[%emt 0:00:01]} Qb5+ {[%emt 0:00:00]} 61. Kc2 {[%emt 0:00:05]} g5 {[%emt 0:00:00]} 62. Rd6+ {[%emt 0:01:34]} Kg7 {[%emt 0:00:00]} 63. Rd4 {[%emt 0:00:01]} Qe2+ {[%emt 0:00:00]} 64. Kb3 {[%emt 0:00:14]} Qb5+ {[%emt 0:00:00]} 65. Kc2 {[%emt 0:00:04]} Kg6 {[%emt 0:00:00]} 66. c4 {[%emt 0:01:49]} Qa4+ {[%emt 0:00:00]} 67. Kc3 {[%emt 0:00:11]} Qa3+ {[%emt 0:00:00]} 68. Kc2 {[%emt 0:00:30]} Kf5 {[%emt 0:00:00]} 69. Rd5+ {[%emt 0:00:21]} Kf4 {[%emt 0:00:00]} 70. Ne5 {[%emt 0:00:22]} Ke4 {[%emt 0:00:00]} 71. Rb5 {[%emt 0:00:58]} Qa2+ {[%emt 0:01:06]} 72. Kc3 {[%emt 0:00:09]} Qa1+ {[%emt 0:00:51]} 73. Kc2 {[%emt 0:00:14]} Qf1 {[%emt 0:01:10]} 74. Kc3 {[%emt 0:00:37]} Qc1+ {[%emt 0:00:39]} 75. Kb3 {[%emt 0:00:21]} Qe3+ {[%emt 0:01:02]} 76. Kc2 {[%emt 0:01:50]} g4 {[%emt 0:02:17]} 77. Nxg4 {[%emt 0:00:00]} Qe2+ {[%emt 0:00:01]} 78. Kc3 {[%emt 0:00:00]} Qxg4 {[%emt 0:00:01]} 79. Rd5 {[%emt 0:00:00]} Qg7+ {[%emt 0:00:59]} 80. Kc2 {[%emt 0:01:13]} Qg3 {[%emt 0:00:20]} 81. Kb2 {[%emt 0:00:27]} Qe3 {[%emt 0:00:16]} 82. Kc2 {[%emt 0:00:46]} Qa3 {[%emt 0:00:03]} 83. Rd2 {[%emt 0:01:04]} Qb4 {[%emt 0:00:18]} 84. Rd3 {[%emt 0:00:00]} Qxc4+ {[%emt 0:00:10]} 85. Rc3 {[%emt 0:00:00]} Qa2+ {[%emt 0:00:01]} 86. Kc1 {[%emt 0:00:20]} Kd4 {[%emt 0:00:11]} 87. Rc2 {[%emt 0:00:46]} Qa5 {[%emt 0:00:41]} 88. Rd2+ {[%emt 0:00:20]} Ke3 {[%emt 0:00:13]} 89. Rc2 {[%emt 0:00:04]} Qa1# {[%emt 0:00:06]} 0-1